fUST/lending_fUST_20250726
["ID","MTS","AMOUNT","RATE_DAILY","PERIOD"]
[375110033,1753530638394,-632.42,0.00019726,2]
[375110034,1753530638405,-460.0,0.00019726,2]
[375110035,1753530638415,-460.0,0.00019726,2]
[375110036,1753530638426,-460.0,0.00019726,2]
[375110037,1753530638435,-460.0,0.00019726,2]
[375110038,1753530638445,-2130.97,0.00019726,2]
[375110039,1753530638454,-460.0,0.00019726,2]
[375110040,1753530638579,-460.0,0.00019726,2]
[375110041,1753530638589,-223.0315306,0.00019877,2]
[375110042,1753530638599,-34163.7320091,0.0001999,2]
[375110043,1753530638611,-3303.1600718,0.0001999,2]
[375110044,1753530638623,-47284.67320736,0.0001999,2]
[375110052,1753530640378,-509.52806293,0.0001999,2]
[375110063,1753530643299,-460.0,0.00019178,2]
[375110064,1753530643309,-152.30982153,0.00019452,2]
[375110065,1753530643322,-307.69017847,0.00019452,2]
[375110066,1753530643332,-109.52632153,0.00019726,2]
[375110067,1753530643375,-350.47367847,0.00019726,2]
[375110068,1753530643385,-1606.88347529,0.0001999,2]
[375110097,1753530646213,-460.0,0.00019178,2]
[375110099,1753530646224,-550.3,0.00019451,2]
[375110101,1753530646238,-460.0,0.00019452,2]
[375110103,1753530646249,-550.3,0.00019725,2]
[375110105,1753530646260,-460.0,0.00019726,2]
[375110108,1753530646271,-1005.32790929,0.0001999,2]
[375110132,1753530694213,167.808603,0.00013699,2]
[375110137,1753530880806,-300.0,0.00018899,2]
[375110138,1753530880831,-153.37690737,0.000189,2]
[375110139,1753530880853,-15239.94885334,0.000189,2]
[375110140,1753530880877,-1073.86,0.00019178,2]
[375110141,1753530880899,-460.0,0.00019178,2]
[375110142,1753530880922,-460.0,0.00019178,2]
[375110143,1753530880955,-460.0,0.00019178,2]
[375110144,1753530880979,-265.22245289,0.00019178,2]
[375110145,1753530881003,-915.35,0.00019178,2]
[375110146,1753530881188,-460.0,0.00019178,2]
[375110147,1753530881212,-460.0,0.00019178,2]
[375110148,1753530881234,-460.0,0.00019178,2]
[375110149,1753530881257,-460.0,0.00019178,2]
[375110150,1753530881280,-729.99,0.00019178,2]
[375110151,1753530881304,-913.7,0.00019178,2]
[375110152,1753530881327,-460.0,0.00019178,2]
[375110153,1753530881349,-460.0,0.00019178,2]
[375110154,1753530881370,-460.0,0.00019178,2]
[375110155,1753530881392,-460.0,0.00019178,2]
[375110156,1753530881414,-460.0,0.00019178,2]
[375110157,1753530881437,-546.03,0.00019178,2]
[375110158,1753530881460,-460.0,0.00019178,2]
[375110159,1753530881483,-776.49,0.00019178,2]
[375110160,1753530881505,-463.95641271,0.00019178,2]
[375110161,1753530881529,-2521.23,0.00019178,2]
[375110162,1753530881551,-460.0,0.00019178,2]
[375110163,1753530881577,-460.0,0.00019178,2]
[375110164,1753530881599,-460.0,0.00019178,2]
[375110165,1753530881622,-460.0,0.00019178,2]
[375110166,1753530881649,-460.0,0.00019178,2]
[375110167,1753530881672,-460.0,0.00019178,2]
[375110168,1753530881693,-460.0,0.00019178,2]
[375110169,1753530881716,-460.0,0.00019178,2]
[375110170,1753530881738,-466.05615248,0.00019178,2]
[375110171,1753530881762,-460.0,0.00019178,2]
[375110172,1753530881785,-513.51,0.00019178,2]
[375110173,1753530881807,-464.72418399,0.00019178,2]
[375110174,1753530881830,-460.0,0.00019178,2]
[375110175,1753530881854,-1123.59,0.00019178,2]
[375110176,1753530881878,-460.0,0.00019178,2]
[375110177,1753530881901,-460.0,0.00019178,2]
[375110178,1753530881925,-460.0,0.00019178,2]
[375110179,1753530881948,-460.0,0.00019178,2]
[375110180,1753530881971,-460.0,0.00019178,2]
[375110181,1753530881994,-460.0,0.00019178,2]
[375110182,1753530882018,-460.0,0.00019178,2]
[375110183,1753530882041,-460.0,0.00019178,2]
[375110184,1753530882065,-460.0,0.00019178,2]
[375110185,1753530882087,-460.0,0.00019178,2]
[375110186,1753530882112,-460.0,0.00019178,2]
[375110187,1753530882135,-460.0,0.00019178,2]
[375110188,1753530882159,-460.0,0.00019178,2]
[375110189,1753530882183,-1035.7,0.00019178,2]
[375110190,1753530882206,-460.0,0.00019178,2]
[375110191,1753530882229,-963.32,0.00019178,2]
[375110192,1753530882252,-460.0,0.00019178,2]
[375110193,1753530882276,-642.94,0.00019178,2]
[375110194,1753530882300,-460.0,0.00019178,2]
[375110195,1753530882322,-460.0,0.00019178,2]
[375110196,1753530882344,-460.0,0.00019178,2]
[375110197,1753530882366,-460.0,0.00019178,2]
[375110198,1753530882390,-771.82,0.00019178,2]
[375110199,1753530882412,-460.0,0.00019178,2]
[375110200,1753530882435,-565.33,0.00019178,2]
[375110201,1753530882457,-460.0,0.00019178,2]
[375110202,1753530882480,-460.0,0.00019178,2]
[375110203,1753530882502,-460.0,0.00019178,2]
[375110204,1753530882524,-460.0,0.00019178,2]
[375110205,1753530882547,-460.0,0.00019178,2]
[375110206,1753530882569,-460.0,0.00019178,2]
[375110207,1753530882594,-13.85503722,0.00019178,2]
[375110214,1753531670452,168.322836,0.00013699,2]
[375110219,1753531752114,-601.20120063,0.0001803,2]
[375110220,1753531752135,-478.61179937,0.00018711,2]
[375110231,1753531810035,400.0,0.00026027,120]
[375110236,1753531832465,-93.27549017,0.00018711,2]
[375110237,1753531832475,-152.25127158,0.000189,2]
[375110238,1753531832484,-400.0,0.00019178,2]
[375110239,1753531832494,-460.0,0.00019178,2]
[375110240,1753531832503,-460.0,0.00019178,2]
[375110241,1753531832513,-169.35144463,0.00019178,2]
[375110242,1753531832523,-460.0,0.00019178,2]
[375110243,1753531832533,-461.41384998,0.00019178,2]
[375110244,1753531832543,-460.0,0.00019178,2]
[375110245,1753531832552,-48.42753486,0.00019178,2]
[375110246,1753531832564,-504.07840656,0.00019178,2]
[375110247,1753531832574,-1000.0,0.00019178,2]
[375110248,1753531832583,-401.94774765,0.00019178,2]
[375110249,1753531832599,-58.05225235,0.00019178,2]
[375110250,1753531832609,-460.0,0.00019178,2]
[375110251,1753531832618,-460.0,0.00019178,2]
[375110252,1753531832628,-460.0,0.00019178,2]
[375110253,1753531832637,-460.0,0.00019178,2]
[375110254,1753531832647,-460.0,0.00019178,2]
[375110255,1753531832657,-460.0,0.00019178,2]
[375110256,1753531832667,-287.03855173,0.00019178,2]
[375110258,1753531832680,-172.96144827,0.00019178,2]
[375110260,1753531832689,-460.90290907,0.00019178,2]
[375110262,1753531832699,-460.0,0.00019178,2]
[375110264,1753531832709,-460.0,0.00019178,2]
[375110266,1753531832719,-460.0,0.00019178,2]
[375110268,1753531832728,-460.0,0.00019178,2]
[375110270,1753531832737,-460.0,0.00019178,2]
[375110272,1753531832748,-460.0,0.00019178,2]
[375110274,1753531832758,-460.0,0.00019178,2]
[375110276,1753531832767,-460.0,0.00019178,2]
[375110278,1753531832777,-460.0,0.00019178,2]
[375110280,1753531832786,-460.0,0.00019178,2]
[375110282,1753531832796,-460.0,0.00019178,2]
[375110284,1753531832806,-460.0,0.00019178,2]
[375110286,1753531832815,-460.0,0.00019178,2]
[375110288,1753531832824,-465.92403038,0.00019178,2]
[375110302,1753531832952,-442.4814034,0.00019178,2]
[375110304,1753531832964,-460.0,0.00019178,2]
[375110306,1753531832974,-460.0,0.00019178,2]
[375110308,1753531832984,-460.0,0.00019178,2]
[375110310,1753531832993,-383.73020888,0.00019178,2]
[375110358,1753531833633,-76.20360418,0.00019178,2]
[375110359,1753531833643,-460.0,0.00019178,2]
[375110360,1753531833653,-312.95971762,0.00019178,2]
[375110387,1753531838385,-147.04028238,0.00019178,2]
[375110388,1753531838396,-460.0,0.00019178,2]
[375110389,1753531838406,-461.78887317,0.00019178,2]
[375110390,1753531838415,-380.99330358,0.00019178,2]
[375110391,1753531838425,-460.0,0.00019178,2]
[375110392,1753531838435,-460.0,0.00019178,2]
[375110393,1753531838444,-460.0,0.00019178,2]
[375110394,1753531838454,-460.0,0.00019178,2]
[375110395,1753531838463,-460.0,0.00019178,2]
[375110396,1753531838473,-460.0,0.00019178,2]
[375110397,1753531838482,-460.0,0.00019178,2]
[375110398,1753531838491,-460.0,0.00019178,2]
[375110399,1753531838500,-460.0,0.00019178,2]
[375110400,1753531838509,-460.0,0.00019178,2]
[375110401,1753531838518,-460.0,0.00019178,2]
[375110402,1753531838528,-220.011865,0.00019178,2]
[375110403,1753531838537,-460.0,0.00019178,2]
[375110404,1753531838546,-460.0,0.00019178,2]
[375110405,1753531838555,-460.0,0.00019178,2]
[375110406,1753531838565,-460.0,0.00019178,2]
[375110407,1753531838574,-460.0,0.00019178,2]
[375110408,1753531838583,-460.0,0.00019178,2]
[375110409,1753531838592,-460.0,0.00019178,2]
[375110410,1753531838601,-460.0,0.00019178,2]
[375110411,1753531838610,-460.0,0.00019178,2]
[375110412,1753531838619,-460.0,0.00019178,2]
[375110413,1753531838629,-460.0,0.00019178,2]
[375110414,1753531838639,-460.0,0.00019178,2]
[375110415,1753531838648,-460.0,0.00019178,2]
[375110416,1753531838657,-460.0,0.00019178,2]
[375110417,1753531838666,-300.00435631,0.00019178,2]
[375110418,1753531838675,-460.0,0.00019178,2]
[375110419,1753531838685,-460.0,0.00019178,2]
[375110420,1753531838696,-460.0,0.00019178,2]
[375110421,1753531838708,-460.0,0.00019178,2]
[375110422,1753531838721,-460.0,0.00019178,2]
[375110423,1753531838733,-460.0,0.00019178,2]
[375110424,1753531838745,-460.0,0.00019178,2]
[375110425,1753531838757,-476.95398629,0.00019178,2]
[375110426,1753531838768,-460.0,0.00019178,2]
[375110427,1753531838779,-460.0,0.00019178,2]
[375110428,1753531838791,-460.0,0.00019178,2]
[375110429,1753531838803,-460.0,0.00019178,2]
[375110430,1753531838815,-460.0,0.00019178,2]
[375110431,1753531838827,-203.15077087,0.00019178,2]
[375110432,1753531838838,-460.0,0.00019178,2]
[375110433,1753531838850,-460.0,0.00019178,2]
[375110434,1753531838862,-460.0,0.00019178,2]
[375110435,1753531838874,-460.0,0.00019178,2]
[375110436,1753531838886,-460.0,0.00019178,2]
[375110437,1753531838898,-460.0,0.00019178,2]
[375110438,1753531838911,-460.0,0.00019178,2]
[375110439,1753531838923,-2522.72,0.00019178,2]
[375110440,1753531838935,-460.0,0.00019178,2]
[375110441,1753531838947,-296.24521383,0.00019178,2]
[375110442,1753531838958,-460.0,0.00019178,2]
[375110443,1753531838970,-460.0,0.00019178,2]
[375110444,1753531838981,-460.0,0.00019178,2]
[375110445,1753531838992,-460.0,0.00019178,2]
[375110446,1753531839005,-460.0,0.00019178,2]
[375110447,1753531839017,-460.0,0.00019178,2]
[375110448,1753531839027,-460.0,0.00019178,2]
[375110449,1753531839039,-460.0,0.00019178,2]
[375110450,1753531839050,-1129.85,0.00019178,2]
[375110451,1753531839060,-460.0,0.00019178,2]
[375110452,1753531839070,-460.0,0.00019178,2]
[375110453,1753531839080,-1114.11,0.00019178,2]
[375110454,1753531839092,-460.0,0.00019178,2]
[375110455,1753531839103,-460.0,0.00019178,2]
[375110456,1753531839113,-938.14,0.00019178,2]
[375110457,1753531839124,-460.0,0.00019178,2]
[375110458,1753531839137,-460.0,0.00019178,2]
[375110459,1753531839149,-460.0,0.00019178,2]
[375110460,1753531839161,-460.0,0.00019178,2]
[375110461,1753531839173,-500.0,0.00019178,2]
[375110462,1753531839184,-460.0,0.00019178,2]
[375110463,1753531839197,-460.0,0.00019178,2]
[375110464,1753531839209,-3069.1,0.00019178,2]
[375110465,1753531839220,-1134.75,0.00019178,2]
[375110466,1753531839233,-460.0,0.00019178,2]
[375110467,1753531839245,-460.0,0.00019178,2]
[375110468,1753531839255,-460.0,0.00019178,2]
[375110469,1753531839269,-460.0,0.00019178,2]
[375110470,1753531839280,-460.0,0.00019178,2]
[375110471,1753531839289,-460.0,0.00019178,2]
[375110472,1753531839300,-460.0,0.00019178,2]
[375110473,1753531839312,-992.67,0.00019178,2]
[375110474,1753531839324,-460.0,0.00019178,2]
[375110475,1753531839337,-467.92723857,0.00019178,2]
[375110476,1753531839350,-460.0,0.00019178,2]
[375110477,1753531839363,-460.0,0.00019178,2]
[375110478,1753531839373,-460.0,0.00019178,2]
[375110479,1753531839384,-460.0,0.00019178,2]
[375110480,1753531839395,-388.81990747,0.00019178,2]
[375110481,1753531839411,-71.18009253,0.00019178,2]
[375110482,1753531839424,-460.0,0.00019178,2]
[375110483,1753531839436,-460.0,0.00019178,2]
[375110484,1753531839448,-460.0,0.00019178,2]
[375110485,1753531839459,-712.7,0.00019178,2]
[375110486,1753531839470,-460.0,0.00019178,2]
[375110487,1753531839480,-460.0,0.00019178,2]
[375110488,1753531839490,-571.85,0.00019178,2]
[375110489,1753531839500,-460.0,0.00019178,2]
[375110490,1753531839511,-158.42372611,0.00019178,2]
[375110491,1753531839522,-460.0,0.00019178,2]
[375110492,1753531839532,-460.0,0.00019178,2]
[375110493,1753531839543,-460.0,0.00019178,2]
[375110494,1753531839554,-1186.03,0.00019178,2]
[375110495,1753531839564,-942.35,0.00019178,2]
[375110496,1753531839575,-460.0,0.00019178,2]
[375110497,1753531839586,-460.0,0.00019178,2]
[375110498,1753531839596,-460.0,0.00019178,2]
[375110499,1753531839607,-460.0,0.00019178,2]
[375110500,1753531839618,-500.0,0.00019178,2]
[375110501,1753531839628,-500.0,0.00019178,2]
[375110502,1753531839640,-500.0,0.00019178,2]
[375110503,1753531839651,-460.0,0.00019178,2]
[375110504,1753531839662,-460.0,0.00019178,2]
[375110505,1753531839672,-460.0,0.00019178,2]
[375110506,1753531839683,-460.0,0.00019178,2]
[375110507,1753531839694,-460.0,0.00019178,2]
[375110508,1753531839704,-460.0,0.00019178,2]
[375110509,1753531839715,-460.0,0.00019178,2]
[375110510,1753531839726,-460.0,0.00019178,2]
[375110511,1753531839737,-460.0,0.00019178,2]
[375110512,1753531839747,-460.0,0.00019178,2]
[375110513,1753531839758,-460.0,0.00019178,2]
[375110514,1753531839768,-460.0,0.00019178,2]
[375110515,1753531839780,-460.0,0.00019178,2]
[375110516,1753531839790,-460.0,0.00019178,2]
[375110517,1753531839801,-460.0,0.00019178,2]
[375110518,1753531839811,-460.0,0.00019178,2]
[375110519,1753531839822,-460.0,0.00019178,2]
[375110520,1753531839832,-1067.06,0.00019178,2]
[375110521,1753531839843,-460.0,0.00019178,2]
[375110522,1753531839853,-756.75,0.00019178,2]
[375110523,1753531839864,-460.0,0.00019178,2]
[375110524,1753531839874,-666.55,0.00019178,2]
[375110525,1753531839885,-460.0,0.00019178,2]
[375110526,1753531839896,-460.0,0.00019178,2]
[375110527,1753531839907,-460.0,0.00019178,2]
[375110528,1753531839919,-460.0,0.00019178,2]
[375110529,1753531839930,-460.0,0.00019178,2]
[375110530,1753531839941,-599.82,0.00019178,2]
[375110531,1753531839952,-460.0,0.00019178,2]
[375110532,1753531839962,-460.0,0.00019178,2]
[375110533,1753531839973,-460.0,0.00019178,2]
[375110535,1753531839984,-460.0,0.00019178,2]
[375110537,1753531839995,-460.0,0.00019178,2]
[375110539,1753531840006,-758.82,0.00019178,2]
[375110540,1753531840016,-460.0,0.00019178,2]
[375110541,1753531840027,-460.0,0.00019178,2]
[375110542,1753531840036,-460.0,0.00019178,2]
[375110543,1753531840045,-359.39011788,0.00019178,2]
[375110544,1753531840200,-365.29932237,0.00019178,2]
[375110545,1753531840211,-460.0,0.00019178,2]
[375110546,1753531840220,-460.0,0.00019178,2]
[375110548,1753531840229,-396.69424928,0.00019178,2]
[375110551,1753531840246,-460.0,0.00019178,2]
[375110553,1753531840260,-469.28,0.00019178,2]
[375110555,1753531840275,-464.29,0.00019178,2]
[375110557,1753531840285,-460.0,0.00019178,2]
[375110559,1753531840295,-460.0,0.00019178,2]
[375110561,1753531840306,-460.0,0.00019178,2]
[375110563,1753531840316,-560.94,0.00019178,2]
[375110565,1753531840326,-460.0,0.00019178,2]
[375110566,1753531840336,-460.0,0.00019178,2]
[375110567,1753531840346,-460.0,0.00019178,2]
[375110570,1753531840356,-460.0,0.00019178,2]
[375110572,1753531840366,-460.0,0.00019178,2]
[375110574,1753531840376,-460.0,0.00019178,2]
[375110576,1753531840386,-666.0,0.00019178,2]
[375110578,1753531840395,-288.8775,0.00019178,2]
[375110580,1753531840405,-282.66688904,0.00019352,2]
[375110582,1753531840415,-471.3,0.00019442,3]
[375110584,1753531840425,-781.14,0.00019442,3]
[375110586,1753531840437,-539.96268388,0.00019451,2]
[375110588,1753531840447,-500.0,0.00019451,2]
[375110590,1753531840456,-460.0,0.00019452,2]
[375110592,1753531840466,-460.0,0.00019452,2]
[375110594,1753531840477,-460.0,0.00019452,2]
[375110596,1753531840486,-460.0,0.00019452,2]
[375110598,1753531840496,-460.0,0.00019452,2]
[375110600,1753531840505,-460.0,0.00019452,2]
[375110602,1753531840515,-460.0,0.00019452,2]
[375110604,1753531840524,-460.0,0.00019452,2]
[375110606,1753531840534,-460.0,0.00019452,2]
[375110608,1753531840543,-460.0,0.00019452,2]
[375110610,1753531840553,-489.27542951,0.00019452,2]
[375110612,1753531840563,-460.0,0.00019452,2]
[375110614,1753531840572,-460.0,0.00019452,2]
[375110616,1753531840582,-460.0,0.00019452,2]
[375110618,1753531840591,-460.0,0.00019452,2]
[375110620,1753531840601,-460.0,0.00019452,2]
[375110622,1753531840611,-460.0,0.00019452,2]
[375110624,1753531840620,-460.0,0.00019452,2]
[375110626,1753531840630,-460.0,0.00019452,2]
[375110628,1753531840640,-460.0,0.00019452,2]
[375110630,1753531840649,-460.0,0.00019452,2]
[375110632,1753531840659,-154.65473086,0.00019452,2]
[375110634,1753531840668,-460.0,0.00019452,2]
[375110636,1753531840678,-460.0,0.00019452,2]
[375110638,1753531840687,-460.0,0.00019452,2]
[375110640,1753531840697,-460.0,0.00019452,2]
[375110642,1753531840709,-460.0,0.00019452,2]
[375110644,1753531840725,-460.0,0.00019452,2]
[375110646,1753531840734,-460.0,0.00019452,2]
[375110648,1753531840748,-2522.72,0.00019452,2]
[375110650,1753531840761,-460.0,0.00019452,2]
[375110652,1753531840771,-460.0,0.00019452,2]
[375110654,1753531840780,-460.0,0.00019452,2]
[375110656,1753531840790,-460.0,0.00019452,2]
[375110658,1753531840800,-460.0,0.00019452,2]
[375110660,1753531840810,-1129.85,0.00019452,2]
[375110662,1753531840820,-460.0,0.00019452,2]
[375110664,1753531840830,-460.0,0.00019452,2]
[375110666,1753531840839,-1114.11,0.00019452,2]
[375110668,1753531840850,-460.0,0.00019452,2]
[375110670,1753531840860,-938.14,0.00019452,2]
[375110672,1753531840869,-460.0,0.00019452,2]
[375110674,1753531840879,-460.0,0.00019452,2]
[375110676,1753531840890,-461.46978179,0.00019452,2]
[375110678,1753531840900,-460.0,0.00019452,2]
[375110680,1753531840909,-3069.1,0.00019452,2]
[375110682,1753531840919,-1134.75,0.00019452,2]
[375110684,1753531840928,-460.0,0.00019452,2]
[375110686,1753531840938,-460.0,0.00019452,2]
[375110688,1753531840948,-503.68,0.00019452,2]
[375110690,1753531840957,-992.67,0.00019452,2]
[375110692,1753531840967,-460.0,0.00019452,2]
[375110694,1753531840976,-532.48022944,0.00019452,2]
[375110696,1753531840986,-225.85864525,0.00019452,2]
[375110698,1753531841000,-234.14135475,0.00019452,2]
[375110700,1753531841010,-76.1805088,0.00019452,2]
[375110705,1753531841041,-383.8194912,0.00019452,2]
[375110707,1753531841051,-460.0,0.00019452,2]
[375110709,1753531841060,-460.0,0.00019452,2]
[375110711,1753531841070,-307.74959897,0.00019452,2]
[375110713,1753531841079,-460.0,0.00019452,2]
[375110715,1753531841089,-712.7,0.00019452,2]
[375110717,1753531841098,-540.25462415,0.00019452,2]
[375110719,1753531841108,-571.85,0.00019452,2]
[375110721,1753531841117,-460.0,0.00019452,2]
[375110723,1753531841127,-460.0,0.00019452,2]
[375110725,1753531841137,-460.0,0.00019452,2]
[375110727,1753531841146,-1186.03,0.00019452,2]
[375110729,1753531841156,-942.35,0.00019452,2]
[375110731,1753531841165,-460.0,0.00019452,2]
[375110733,1753531841174,-460.0,0.00019452,2]
[375110735,1753531841183,-460.0,0.00019452,2]
[375110737,1753531841193,-460.0,0.00019452,2]
[375110739,1753531841203,-460.0,0.00019452,2]
[375110741,1753531841213,-460.0,0.00019452,2]
[375110743,1753531841222,-460.0,0.00019452,2]
[375110745,1753531841232,-460.0,0.00019452,2]
[375110747,1753531841241,-460.0,0.00019452,2]
[375110749,1753531841250,-460.0,0.00019452,2]
[375110751,1753531841260,-460.0,0.00019452,2]
[375110753,1753531841274,-460.0,0.00019452,2]
[375110755,1753531841284,-1067.06,0.00019452,2]
[375110757,1753531841294,-756.75,0.00019452,2]
[375110759,1753531841304,-666.55,0.00019452,2]
[375110761,1753531841313,-460.0,0.00019452,2]
[375110763,1753531841323,-599.82,0.00019452,2]
[375110765,1753531841336,-460.0,0.00019452,2]
[375110767,1753531841346,-758.82,0.00019452,2]
[375110769,1753531841356,-460.0,0.00019452,2]
[375110771,1753531841367,-460.0,0.00019452,2]
[375110773,1753531841376,-460.0,0.00019452,2]
[375110775,1753531841387,-460.0,0.00019452,2]
[375110777,1753531841396,-460.0,0.00019452,2]
[375110779,1753531841406,-469.28,0.00019452,2]
[375110781,1753531841416,-464.29,0.00019452,2]
[375110783,1753531841426,-460.0,0.00019452,2]
[375110785,1753531841435,-460.0,0.00019452,2]
[375110787,1753531841445,-460.0,0.00019452,2]
[375110789,1753531841454,-560.94,0.00019452,2]
[375110791,1753531841464,-460.0,0.00019452,2]
[375110793,1753531841473,-460.0,0.00019452,2]
[375110795,1753531841483,-178.5,0.00019543,2]
[375110798,1753531841492,-460.0,0.00019726,2]
[375110800,1753531841503,-460.0,0.00019726,2]
[375110802,1753531841512,-460.0,0.00019726,2]
[375110804,1753531841522,-460.0,0.00019726,2]
[375110806,1753531841531,-460.0,0.00019726,2]
[375110808,1753531841544,-460.0,0.00019726,2]
[375110810,1753531841554,-460.0,0.00019726,2]
[375110812,1753531841564,-460.0,0.00019726,2]
[375110814,1753531841581,-460.0,0.00019726,2]
[375110816,1753531841594,-460.0,0.00019726,2]
[375110818,1753531841605,-460.0,0.00019726,2]
[375110820,1753531841614,-460.0,0.00019726,2]
[375110822,1753531841624,-460.0,0.00019726,2]
[375110824,1753531841634,-460.0,0.00019726,2]
[375110826,1753531841644,-460.0,0.00019726,2]
[375110828,1753531841654,-460.0,0.00019726,2]
[375110830,1753531841664,-460.0,0.00019726,2]
[375110832,1753531841674,-460.0,0.00019726,2]
[375110834,1753531841684,-460.0,0.00019726,2]
[375110836,1753531841694,-2522.72,0.00019726,2]
[375110838,1753531841704,-460.0,0.00019726,2]
[375110840,1753531841715,-460.0,0.00019726,2]
[375110842,1753531841725,-460.0,0.00019726,2]
[375110844,1753531841736,-460.0,0.00019726,2]
[375110845,1753531841747,-460.0,0.00019726,2]
[375110848,1753531841758,-1129.85,0.00019726,2]
[375110850,1753531841769,-460.0,0.00019726,2]
[375110852,1753531841780,-460.0,0.00019726,2]
[375110853,1753531841791,-1114.11,0.00019726,2]
[375110855,1753531841801,-460.0,0.00019726,2]
[375110857,1753531841812,-938.14,0.00019726,2]
[375110859,1753531841822,-460.0,0.00019726,2]
[375110861,1753531841831,-460.0,0.00019726,2]
[375110864,1753531841841,-3069.1,0.00019726,2]
[375110866,1753531841851,-1134.75,0.00019726,2]
[375110867,1753531841860,-460.0,0.00019726,2]
[375110869,1753531841870,-460.0,0.00019726,2]
[375110871,1753531841880,-992.67,0.00019726,2]
[375110874,1753531841891,-460.0,0.00019726,2]
[375110876,1753531841902,-460.0,0.00019726,2]
[375110877,1753531841912,-460.0,0.00019726,2]
[375110880,1753531841921,-460.0,0.00019726,2]
[375110882,1753531841931,-531.31386285,0.00019726,2]
[375110883,1753531841941,-712.7,0.00019726,2]
[375110886,1753531841951,-571.85,0.00019726,2]
[375110888,1753531841961,-460.0,0.00019726,2]
[375110890,1753531841970,-460.0,0.00019726,2]
[375110892,1753531841980,-460.0,0.00019726,2]
[375110894,1753531841990,-1186.03,0.00019726,2]
[375110896,1753531841999,-942.35,0.00019726,2]
[375110897,1753531842008,-460.0,0.00019726,2]
[375110899,1753531842018,-460.0,0.00019726,2]
[375110902,1753531842027,-460.0,0.00019726,2]
[375110903,1753531842037,-460.0,0.00019726,2]
[375110905,1753531842047,-460.0,0.00019726,2]
[375110907,1753531842056,-460.0,0.00019726,2]
[375110909,1753531842065,-459.78723784,0.00019726,2]
[375110911,1753531842075,-460.0,0.00019726,2]
[375110913,1753531842084,-1067.06,0.00019726,2]
[375110915,1753531842093,-756.75,0.00019726,2]
[375110917,1753531842102,-666.55,0.00019726,2]
[375110919,1753531842112,-460.0,0.00019726,2]
[375110921,1753531842121,-599.82,0.00019726,2]
[375110923,1753531842131,-460.0,0.00019726,2]
[375110925,1753531842143,-758.82,0.00019726,2]
[375110927,1753531842153,-460.0,0.00019726,2]
[375110929,1753531842163,-460.0,0.00019726,2]
[375110931,1753531842173,-460.0,0.00019726,2]
[375110933,1753531842183,-469.28,0.00019726,2]
[375110935,1753531842192,-464.29,0.00019726,2]
[375110937,1753531842202,-460.0,0.00019726,2]
[375110939,1753531842212,-460.0,0.00019726,2]
[375110941,1753531842221,-560.94,0.00019726,2]
[375110943,1753531842231,-500.0,0.00019973,2]